Cogmind - Beta 13 @@@ ROGUE MODE // 2024.05.13 @ 19:59:05 Player: BrainTooSmol Result: Destroyed by P-80 Master with Gamma Rifle Performance ------------- Evolutions (8) 4000 Regions Visited (28) 5600 Robots Destroyed (228) 1140 Value Destroyed (6792) 6792 Prototype IDs (60) 1200 Alien Tech Used (2) 400 Bonus (6856) 6856 TOTAL SCORE: 25988 Bonus ------- High Alert Combat Kills 366 Follower Combat Kills 2339 Network Hubs Disabled 400 Met Data Miner 300 Met Imprinter 300 Met Zhirov 300 Met R17 at Cetus 500 Scanned by Researcher 500 Acquired SGEMP 2000 Friendly Fire -149 Cogmind --------- Core Integrity 0/1450 Matter 157/300 Energy 99/100 System Corruption 7% Temperature Cool (0) Movement Core (50) Location -2/Research Parts ------- > --- POWER (2) -------- (None) > --- PROPULSION (5) --- (None) > --- UTILITY (14) ----- Experimental Signal Interpreter Advanced Hacking Suite Advanced Hacking Suite Improved System Shield > --- WEAPON (2) ------- (None) > --- INVENTORY (5) ---- Advanced Power Amplifier Mini Smartbomb Launcher Portable AFG (93) SGEMP Prototype Peak State ------------ > --- POWER ------------ Micro Antimatter Reactor Micro Antimatter Reactor > --- PROPULSION ------- Field Propulsion Array Cooled Impulse Thruster Cooled Impulse Thruster Cooled Impulse Thruster > --- UTILITY ---------- Medium Storage Unit Advanced Weight Redist. System Enhanced Optical Array Advanced Sensor Array Experimental Signal Interpreter Advanced ECM Suite Advanced Cloaking Device Experimental Utility Shielding Advanced Hacking Suite Advanced Hacking Suite Advanced Hacking Suite System Mapper Advanced System Shield Advanced System Shield > --- WEAPON ----------- Mini Smartbomb Launcher Nanosword > --- INVENTORY -------- Cooled Impulse Thruster Advanced Power Amplifier Advanced Reaction Control System Potential Cannon Portable AFG SGEMP Prototype [Rating: 160] Favorites ----------- Power Micro Antimatter Reactor Engine Heavy Ion Engine Power Core Light Nuclear Core Reactor Micro Antimatter Reactor Propulsion Improved Cesium-ion Thruster Treads Light Treads Leg Aluminum Leg Wheel Armored Wheel Flight Unit Improved Cesium-ion Thruster Utility Advanced Hacking Suite Device Advanced Weight Redist. System Storage Large Storage Unit Processor Improved Signal Interpreter Hackware Advanced Hacking Suite Protection Light Armor Plating Weapon Improved Assault Rifle Energy Gun Particle Gun Energy Cannon Disintegrator Ballistic Gun Improved Assault Rifle Ballistic Cannon Perforator Launcher Mini Smartbomb Launcher Special Weapon Improved Remote Datajack Impact Weapon Powered Hammer Slashing Weapon Power Sword Build | -11 -10 -10 -9 -9 -8 -7 -7 -7 -7 -6 -6 -6 -6 -6 -5 -5 -5 -5 -5 -5 -4 -4 -4 -4 -3 -3 -3 -2 ------- Run | Yrd Mat Min Mat Min Mat Fac Low Low Dat Pro Fac Low Low Zio Pro Fac Ext Cet Arc Hub Fac Upp Upp Zhi Pro Res Tes Res Slots Evolved 16 | . . . 2 . 2 2 . . . . 2 . . . . 2 . . . . 2 . . . . 2 . 2 Power 1 | . . . . . . . . . . . . . . . . . . . . . 1 . . . . . . . Propulsion 3 | . . . . . . . . . . . . . . . . 1 . . . . . . . . . 1 . 1 Utility 12 | . . . 2 . 2 2 . . . . 2 . . . . 1 . . . . 1 . . . . 1 . 1 Weapon . | . . . . . . . . . . . . . . . . . . . . . . . . . . . . . Parts Attached 231 | 2 10 4 30 3 30 10 4 2 . 5 18 . . . . 12 2 . 4 2 15 4 . 4 . 16 43 11 Power 27 | . 3 1 2 . 3 1 1 . . . 2 . . . . 2 . . . . 4 . . 2 . 3 1 2 Engine 9 | . 3 1 2 . 2 . . . . . 1 . . . . . . . . . . . . . . . . . Core 4 | . . . . . 1 1 1 . . . . . . . . 1 . . . . . . . . . . . . Reactor 14 | . . . . . . . . . . . 1 . . . . 1 . . . . 4 . . 2 . 3 1 2 Propulsion 42 | . 2 1 6 . 6 3 . . . . 5 . . . . 4 . . 1 1 1 . . . . 4 4 4 Treads 9 | . 1 . 3 . 5 . . . . . . . . . . . . . . . . . . . . . . . Leg . | . . . . . . . . . . . . . . . . . . . . . . . . . . . . . Wheel 5 | . 1 1 2 . 1 . . . . . . . . . . . . . . . . . . . . . . . Hover . | . . . . . . . . . . . . . . . . . . . . . . . . . . . . . Flight 28 | . . . 1 . . 3 . . . . 5 . . . . 4 . . 1 1 1 . . . . 4 4 4 Utility 92 | 1 2 . 7 . 9 6 2 1 . 3 9 . . . . 3 . . 3 1 6 4 . 2 . 8 21 4 Device 46 | 1 1 . 2 . . 2 1 1 . 3 2 . . . . 1 . . . 1 4 4 . . . 6 14 3 Storage 4 | . 1 . . . . . . . . . . . . . . . . . . . . . . . . . 3 . Processor 6 | . . . 1 . 2 1 . . . . 1 . . . . . . . . . . . . . . . 1 . Hackware 22 | . . . . . 3 3 1 . . . 6 . . . . 1 . . 3 . 1 . . 1 . 1 1 1 Protection 14 | . . . 4 . 4 . . . . . . . . . . 1 . . . . 1 . . 1 . 1 2 . Artifact . | . . . . . . . . . . . . . . . . . . . . . . . . . . . . . Weapon 70 | 1 3 2 15 3 12 . 1 1 . 2 2 . . . . 3 2 . . . 4 . . . . 1 17 1 Energy Gun 7 | 1 2 1 1 . . . . . . . . . . . . . . . . . . . . . . . 2 . Energy Cannon 2 | . . . . . . . . . . . . . . . . . . . . . . . . . . . 2 . Ballistic Gun 19 | . 1 . 10 2 6 . . . . . . . . . . . . . . . . . . . . . . . Ballistic Cannon 1 | . . . . . . . . . . . . . . . . . . . . . . . . . . . 1 . Launcher 20 | . . . 3 1 3 . 1 . . 2 1 . . . . 2 1 . . . 2 . . . . . 4 . Special Weapon 4 | . . 1 . . . . . . . . . . . . . . 1 . . . 1 . . . . 1 . . Impact Weapon 7 | . . . . . . . . . . . . . . . . . . . . . 1 . . . . . 6 . Slashing Weapon 10 | . . . 1 . 3 . . 1 . . 1 . . . . 1 . . . . . . . . . . 2 1 Piercing Weapon . | . . . . . . . . . . . . . . . . . . . . . . . . . . . . . Special Melee Weapon . | . . . . . . . . . . . . . . . . . . . . . . . . . . . . . Unidentified Prototypes 27 | . . . 3 . . . . . . 1 4 . . . . . . . . . 1 . . 2 . . 16 . Parts Lost 55 | . . 2 10 . 11 1 . . . 4 . . . . . 2 . 1 . . 2 . . . . 1 . 21 Power 11 | . . 1 3 . 2 . . . . 1 . . . . . 1 . . . . . . . . . . . 3 Propulsion 16 | . . 1 1 . 4 . . . . 1 . . . . . . . . . . 1 . . . . 1 . 7 Utility 22 | . . . 4 . 4 1 . . . 2 . . . . . 1 . . . . . . . . . . . 10 Weapon 6 | . . . 2 . 1 . . . . . . . . . . . . 1 . . 1 . . . . . . 1 Highest Loss Streak 14 | . . 1 3 . 5 1 . . . 2 . . . . . 1 . 1 . . 1 . . . . 1 . 14 To Critical Strikes 2 | . . . 1 . . . . . . . . . . . . . . . . . . . . . . . . 1 Average Slot Usage (%) 94 | . 96 99 92 100 90 86 87 92 92 82 92 100 100 100 100 96 100 97 94 94 93 100 100 98 100 93 93 81 Engine 5 | . 11 13 10 11 7 . . . . . 3 6 6 6 6 2 . . . . . . . . . . . . Reactor 2 | . . . . . . . . . . . 1 . . . . . 5 5 5 5 7 10 10 10 10 8 9 6 Treads 5 | . 7 14 9 11 15 2 . . . . . . . . . . . . . . . . . . . . . . Wheel 3 | . 7 13 10 11 2 . . . . . . . . . . . . . . . . . . . . . . . Flight 8 | . . . . . . 12 15 15 15 13 12 13 13 13 13 16 17 17 17 17 14 15 15 15 15 15 13 15 Device 10 | . 13 14 4 11 . 10 15 15 15 13 12 13 13 13 13 11 11 11 11 11 13 15 15 15 15 17 18 12 Storage 5 | . 14 14 11 11 9 1 . . . . . . . . . . . . . . . . . . . . . 3 Processor 10 | . . . 10 11 16 12 15 15 15 15 13 13 13 13 13 11 11 11 11 11 10 10 10 10 10 9 9 7 Hackware 19 | . . . . . 13 28 26 30 30 30 38 40 40 40 40 37 35 35 35 35 32 31 31 31 31 28 28 25 Protection 4 | . . . 11 11 7 . . . . . . . . . . 1 5 5 5 5 5 5 5 4 5 3 3 2 Energy Gun 1 | . 13 13 1 . . . . . . . . . . . . . . . . . . . . . . . . . Ballistic Gun 8 | . 13 14 19 21 17 1 . . . . . . . . . . . . . . . . . . . . . . Launcher 1 | . . . . . . . . . . . 1 6 6 6 6 5 . 3 . . 2 5 5 5 5 4 3 2 Slashing Weapon 2 | . . . 1 . . 7 7 7 7 7 6 6 6 6 6 4 5 5 5 5 1 . . . . . 3 3 Naked Turns . | . . . . . . . . . . . . . . . . . . . . . . . . . . . . . Heaviest Build 41 | 15 29 31 40 41 41 36 15 15 11 12 19 19 19 19 19 19 17 17 13 13 28 28 26 26 26 30 35 38 Greatest Support 56 | 20 20 10 12 12 56 56 17 17 11 12 21 21 21 21 21 27 27 27 27 27 28 28 28 28 28 36 38 45 Greatest Overweight (x) 8 | . 2 3 3 3 8 . . . . 1 . . . . . . . . . . . . . . . 1 . 1 Average Overweight (x) . | . . 2 2 3 . . . . . . . . . . . . . . . . . . . . . . . . Largest Inventory Capacity 15 | 8 15 15 15 15 15 15 5 5 5 5 5 5 5 5 5 5 5 5 5 5 5 5 5 5 5 5 10 10 Average Capacity 9 | 8 10 15 15 15 15 6 5 5 5 5 5 5 5 5 5 5 5 5 5 5 5 5 5 5 5 5 5 9 Most Carried 15 | 7 10 10 15 14 15 15 5 5 5 5 5 5 5 5 5 5 5 5 5 5 5 5 5 5 5 5 10 10 Average Carried 8 | 6 8 9 12 14 14 6 4 4 5 4 4 4 5 5 5 4 5 5 5 5 4 5 5 5 5 4 5 7 Final Capacity 15 | 8 15 15 15 15 15 5 5 5 5 5 5 5 5 5 5 5 5 5 5 5 5 5 5 5 5 5 10 5 Final Carried 15 | 7 9 10 14 14 15 5 4 5 5 4 5 5 5 5 5 5 5 5 5 5 5 5 5 5 5 5 10 5 Class Distribution -------------------- 30% | Mutant 27% | Wizard-Scout 17% | Wizard-Ninja 12% | Scavenger-Mutant 6% | Hacker-Ninja 3% | Hacker-Mutant Dominant Class ---------------- Mutant | -10/Materials Mutant | -10/Mines Mutant | -9/Materials Mutant | -9/Mines Scavenger-Mutant | -8/Materials Hacker-Ninja | -7/Factory Hacker-Ninja | -7/Lower Caves Hacker-Ninja | -7/Lower Caves Hacker-Ninja | -7/Data Miner Hacker-Ninja | -6/Proximity Caves Wizard-Scout | -6/Factory Wizard-Scout | -6/Lower Caves Wizard-Scout | -6/Lower Caves Wizard-Scout | -6/Zion Wizard-Scout | -5/Proximity Caves Wizard-Scout | -5/Factory Wizard-Scout | -5/Extension Wizard-Scout | -5/Cetus Wizard-Scout | -5/Archives Wizard-Scout | -5/Hub_04(d) Wizard-Ninja | -4/Factory Wizard-Ninja | -4/Upper Caves Wizard-Ninja | -4/Upper Caves Wizard-Ninja | -4/Zhirov Wizard-Ninja | -3/Proximity Caves Wizard-Ninja | -3/Research Wizard-Ninja | -3/Testing Wizard-Ninja | -2/Research Resources | -11 -10 -10 -9 -9 -8 -7 -7 -7 -7 -6 -6 -6 -6 -6 -5 -5 -5 -5 -5 -5 -4 -4 -4 -4 -3 -3 -3 -2 ----------- Run | Yrd Mat Min Mat Min Mat Fac Low Low Dat Pro Fac Low Low Zio Pro Fac Ext Cet Arc Hub Fac Upp Upp Zhi Pro Res Tes Res Matter Collected 5794 | 191 260 160 1066 75 1080 59 58 76 . 273 140 50 . . . 182 410 320 40 20 18 140 112 . 225 134 656 49 Remotely . | . . . . . . . . . . . . . . . . . . . . . . . . . . . . . Salvage Created 7171 | 12 439 401 1783 25 1828 59 11 . . 108 217 . . . . 146 558 78 326 86 . 35 43 . 146 108 545 217 Parts 451 | 4 36 32 122 4 105 1 2 . . 3 9 . . . . 20 19 9 15 2 . 4 6 . 5 . 30 23 Haulers Intercepted 19 | . 1 . 6 . 6 1 . . . . 2 . . . . . . . . 1 . . . . . . 2 . Recyclers Shooed 4 | 1 2 . . . 1 . . . . . . . . . . . . . . . . . . . . . . . Parts Field Recycled . | . . . . . . . . . . . . . . . . . . . . . . . . . . . . . Retrieved Matter . | . . . . . . . . . . . . . . . . . . . . . . . . . . . . . Parts Self-Destructed 25 | . . . . . . . . . . 4 . . 2 . . . . . . . . 1 14 . 4 . . . Prevented 2 | . . . . . . . . . . . . . . . . . . . . . . . 2 . . . . . Kills | -11 -10 -10 -9 -9 -8 -7 -7 -7 -7 -6 -6 -6 -6 -6 -5 -5 -5 -5 -5 -5 -4 -4 -4 -4 -3 -3 -3 -2 ------- Run | Yrd Mat Min Mat Min Mat Fac Low Low Dat Pro Fac Low Low Zio Pro Fac Ext Cet Arc Hub Fac Upp Upp Zhi Pro Res Tes Res Combat Hostiles Destroyed 154 | . 12 13 39 4 28 . 1 . . 6 . . . . . 10 9 7 2 . . 4 4 . 6 . 4 5 Melee 4 | . . . . . . . 1 . . 1 . . . . . . . . 2 . . . . . . . . . Guns 82 | . 12 13 33 . 24 . . . . . . . . . . . . . . . . . . . . . . . AOE 68 | . . . 6 4 4 . . . . 5 . . . . . 10 9 7 . . . 4 4 . 6 . 4 5 Classes Destroyed 21 | 1 5 1 2 . 4 . 1 . . . . . . . . 1 3 . . . . . . . 2 . 1 . Worker 8 | . . . 2 . 4 . . . . . . . . . . . . . . . . . . . . . . 2 Builder 4 | . . . . . 1 . . . . . . . . . . . . . . . . . . . . . . 3 Tunneler 2 | 1 . 1 . . . . . . . . . . . . . . . . . . . . . . . . . . Hauler 19 | . 1 . 6 . 6 1 . . . . 2 . . . . . . . . 1 . . . . . . 2 . Recycler 1 | . . . . . 1 . . . . . . . . . . . . . . . . . . . . . . . Minesweeper 1 | . . . . . . . . . . . . . . . . . . . . . . . . . 1 . . . Mechanic 2 | . . . . . . . . . . . . . . . . . 2 . . . . . . . . . . . Operator 11 | . 2 . 1 . 2 . . . . . . . . . . 1 . . 5 . . . . . . . . . Drone 3 | . . . . . . . . . . . . . . . . 1 . . . . . . . . 2 . . . Watcher 24 | . 2 . 5 . 5 . . . . . 1 . . . . 2 . 1 . . . . . . . 3 3 2 Swarmer 73 | . 6 3 13 4 4 . . . . 6 . . . . . 9 . 7 . . . 4 4 . 4 . 4 5 Grunt 50 | . 6 9 17 . 14 . . . . . . . . . . . 4 . . . . . . . . . . . Brawler 3 | . . . . . 1 . . . . . . . . . . . 2 . . . . . . . . . . . Duelist 1 | . . . . . . . . . . . . . . . . . 1 . . . . . . . . . . . Researcher 4 | . . . . . . . . . . . . . . . . . . . . . . . . . . . 4 . Sentry 18 | . . . 9 . 7 . . . . . . . . . . . . . 2 . . . . . . . . . Specialist 2 | . . . . . . . . . . . . . . . . . 2 . . . . . . . . . . . Hunter 2 | . . . . . 2 . . . . . . . . . . . . . . . . . . . . . . . Decomposer 1 | . . . . . . . . . . 1 . . . . . . . . . . . . . . . . . . Samaritan 1 | . . . . . . . . . . . . . . . . . . . . . . . . . 1 . . . Thief 1 | . . . . . . . 1 . . . . . . . . . . . . . . . . . . . . . Assembled 1 | . . 1 . . . . . . . . . . . . . . . . . . . . . . . . . . Best Kill Streak 11 | 1 5 3 7 4 8 1 1 . . 6 1 . . . . 5 11 7 2 1 . 4 4 . 4 1 4 7 Combat Bots Only 9 | . 5 3 6 4 7 . 1 . . 6 . . . . . 5 9 7 1 . . 4 4 . 4 . 4 3 Max Kills in Single Turn 7 | 1 1 1 3 4 2 1 1 . . 3 1 . . . . 4 7 3 1 1 . 3 4 . 3 1 2 5 Gunslinging 1 | . . . . . 1 . . . . . . . . . . . . . . . . . . . . . . . Exploded 5 | . . . 3 4 2 . . . . 3 . . . . . 4 5 3 . . . 3 4 . 3 . 2 2 Melee 1 | . . . . . . . 1 . . 1 . . . . . . . . 1 . . . . . . . . . Uniques/NPCs Destroyed . | . . . . . . . . . . . . . . . . . . . . . . . . . . . . . Combat | -11 -10 -10 -9 -9 -8 -7 -7 -7 -7 -6 -6 -6 -6 -6 -5 -5 -5 -5 -5 -5 -4 -4 -4 -4 -3 -3 -3 -2 -------- Run | Yrd Mat Min Mat Min Mat Fac Low Low Dat Pro Fac Low Low Zio Pro Fac Ext Cet Arc Hub Fac Upp Upp Zhi Pro Res Tes Res Hostile Shots Fired 879 | . 43 57 146 2 154 15 2 . . 18 . . . . 2 35 4 29 15 19 58 2 . . 1 45 3 229 Missed 332 | . 7 8 35 2 39 11 1 . . 8 . . . . 1 17 2 15 4 6 29 1 . . 1 26 . 119 Damage Taken 10115 | . 341 512 1417 54 1617 33 . . . 664 . . . . 23 444 68 347 293 221 555 26 . . 102 605 93 2700 Core 3644 | . 63 159 190 . 265 6 . . . 503 . . . . . 153 29 176 183 64 262 26 . . 46 69 . 1450 Absorbed by Shields 56 | . . . . . . . . . . . . . . . . . 9 41 . . . . . . . . . 6 Redirected to Shielding 551 | . . . . . . . . . . . . . . . . . 17 27 24 78 76 . . . 29 135 82 83 Ignored by Resistances 58 | . . . . . 58 . . . . . . . . . . . . . . . . . . . . . . . Regen/Repaired (Parts) 1116 | . 154 . 222 . . . . . . . . . . . . 107 . . . . 69 . . . . 283 281 . Core Remaining (%) 60 | 100 . 11 . 52 51 . . . . 27 . . . . 100 . . . . 39 . . . . 70 . 94 . Volleys Fired 457 | 2 45 42 145 1 130 . . . . 11 . . . . . 8 34 13 . . 1 2 1 . 7 1 8 6 Largest 2 | 2 2 2 2 1 2 . . . . 1 . . . . . 1 1 1 . . 1 1 1 . 1 1 1 1 Hottest 100 | 70 85 100 85 36 72 . . . . 36 . . . . . 80 80 80 . . 7 80 80 . 80 80 80 80 Shots Fired 792 | 4 90 82 267 1 256 . . . . 11 . . . . . 8 34 13 . . 1 2 1 . 7 1 8 6 Gun 688 | 4 90 80 265 . 249 . . . . . . . . . . . . . . . . . . . . . . . Cannon . | . . . . . . . . . . . . . . . . . . . . . . . . . . . . . Launcher 69 | . . . 2 1 7 . . . . 11 . . . . . 8 2 13 . . . 2 1 . 7 1 8 6 Special 35 | . . 2 . . . . . . . . . . . . . . 32 . . . 1 . . . . . . . Kinetic 581 | 2 45 40 245 . 249 . . . . . . . . . . . . . . . . . . . . . . . Thermal 109 | 2 45 42 20 . . . . . . . . . . . . . . . . . . . . . . . . . Explosive 69 | . . . 2 1 7 . . . . 11 . . . . . 8 2 13 . . . 2 1 . 7 1 8 6 Electromagnetic . | . . . . . . . . . . . . . . . . . . . . . . . . . . . . . Robot Hit Streak 31 | 3 8 12 31 . 22 . . . . 1 . . . . . . 16 . . . 13 . . . . . . . Robot Miss Streak 6 | . 3 3 6 1 4 . . . . 1 . . . . . . 4 . . . . . . . . . . . Penetration Max 1 | . . . . . 1 . . . . . . . . . . . . . . . . . . . . . . . Secondary Targets 6 | . 1 1 . . 4 . . . . . . . . . . . . . . . . . . . . . . . Max Gunslinging Chain 1 | . 1 1 . . 1 . . . . . . . . . . . . . . . . . . . . . . . Shots Hit Robots 580 | 3 57 50 187 . 184 1 3 . . 5 3 . . . . 6 27 . 21 5 3 . . . 2 4 15 4 Core Hits 334 | 2 25 21 75 4 79 . . . . 7 3 . . . . 15 21 29 7 1 . 4 2 . 11 . 12 16 Critical Kills . | . . . . . . . . . . . . . . . . . . . . . . . . . . . . . Critical Parts Destroyed 3 | . . . . . 3 . . . . . . . . . . . . . . . . . . . . . . . Critical Strikes 11 | . 3 1 3 . 4 . . . . . . . . . . . . . . . . . . . . . . . Burn 6 | . 3 1 2 . . . . . . . . . . . . . . . . . . . . . . . . . Destroy 5 | . . . 1 . 4 . . . . . . . . . . . . . . . . . . . . . . . Melee Attacks 286 | . . . 1 . 6 8 5 . . 8 23 1 1 1 . 61 . 1 28 18 19 . . . 2 5 78 20 Impact 32 | . . . . . . . . . . . . . . . . . . . . . 12 . . . 2 5 13 . Slashing 254 | . . . 1 . 6 8 5 . . 8 23 1 1 1 . 61 . 1 28 18 7 . . . . . 65 20 Piercing . | . . . . . . . . . . . . . . . . . . . . . . . . . . . . . Sneak Attacks 25 | . . . . . . 1 . . . 2 2 . . . . . . . 6 1 1 . . . 2 2 7 1 Combat Hostiles . | . . . . . . . . . . . . . . . . . . . . . . . . . . . . . Follow-up Attacks . | . . . . . . . . . . . . . . . . . . . . . . . . . . . . . Damage Inflicted 20765 | 38 800 715 3040 194 3806 93 112 . . 564 207 . . . . 1343 1077 1706 1389 271 116 341 290 . 781 399 2060 1423 Guns 7297 | 38 800 715 2783 . 2961 . . . . . . . . . . . . . . . . . . . . . . . Cannons . | . . . . . . . . . . . . . . . . . . . . . . . . . . . . . Explosions 8341 | . . . 257 194 805 . . . . 367 . . . . . 1041 1077 1706 . . . 341 290 . 588 27 548 1100 Melee 5126 | . . . . . 39 93 112 . . 197 207 . . . . 302 . . 1389 271 116 . . . 193 372 1512 323 Ramming 1 | . . . . . 1 . . . . . . . . . . . . . . . . . . . . . . . Kinetic 6254 | 26 379 309 2579 . 2961 . . . . . . . . . . . . . . . . . . . . . . . Thermal 1043 | 12 421 406 204 . . . . . . . . . . . . . . . . . . . . . . . . . Explosive 8341 | . . . 257 194 805 . . . . 367 . . . . . 1041 1077 1706 . . . 341 290 . 588 27 548 1100 Electromagnetic . | . . . . . . . . . . . . . . . . . . . . . . . . . . . . . Impact 598 | . . . . . . . . . . . . . . . . . . . . . . . . . 193 372 33 . Slashing 4528 | . . . . . 39 93 112 . . 197 207 . . . . 302 . . 1389 271 116 . . . . . 1479 323 Piercing . | . . . . . . . . . . . . . . . . . . . . . . . . . . . . . Highest Corruption 7 | . . . 1 1 . 1 1 1 1 6 . . . . . . . . . . 1 1 1 1 1 . . 7 Average Corruption 1 | . . . 1 1 . 1 1 1 1 1 . . . . . . . . . . 1 1 1 1 1 . . 3 Corruption Purged . | . . . . . . . . . . . . . . . . . . . . . . . . . . . . . Corruption Blocked . | . . . . . . . . . . . . . . . . . . . . . . . . . . . . . Effects 63 | . . . 24 15 . 2 1 1 . 8 . . . . . . . . . . 2 1 1 1 1 . . 6 Message Errors 17 | . . . 8 3 . . 1 . . 3 . . . . . . . . . . . 1 . . 1 . . . Matter Fused 16 | . . . 3 4 . 2 . 1 . 3 . . . . . . . . . . . . 1 . . . . 2 Heat Flow Errors 7 | . . . 6 . . . . . . . . . . . . . . . . . . . . 1 . . . . Energy Discharges 8 | . . . . 5 . . . . . . . . . . . . . . . . . . . . . . . 3 Parts Rejected 1 | . . . 1 . . . . . . . . . . . . . . . . . . . . . . . . . Parts Fused 1 | . . . . 1 . . . . . . . . . . . . . . . . . . . . . . . . Data Loss (minor) 7 | . . . 2 1 . . . . . 1 . . . . . . . . . . 2 . . . . . . 1 Data Loss (major) 3 | . . . 1 1 . . . . . 1 . . . . . . . . . . . . . . . . . . Misfires 1 | . . . 1 . . . . . . . . . . . . . . . . . . . . . . . . . Alerts 1 | . . . 1 . . . . . . . . . . . . . . . . . . . . . . . . . Weapon Failures 1 | . . . 1 . . . . . . . . . . . . . . . . . . . . . . . . . Overload Shots . | . . . . . . . . . . . . . . . . . . . . . . . . . . . . . Overflow Damage 1947 | . . . . . 55 33 30 . . 110 . . . . . 139 . 45 356 18 14 . 73 . 176 214 406 278 Projectiles . | . . . . . . . . . . . . . . . . . . . . . . . . . . . . . Explosions 407 | . . . . . 55 . . . . . . . . . . 56 . 45 . . . . 73 . 17 . 12 149 Melee 1540 | . . . . . . 33 30 . . 110 . . . . . 83 . . 356 18 14 . . . 159 214 394 129 Knockbacks 3 | . . . . . . . . . . . . . . . . . . . . . . . . . . 3 . . Impact 3 | . . . . . . . . . . . . . . . . . . . . . . . . . . 3 . . Kinetic . | . . . . . . . . . . . . . . . . . . . . . . . . . . . . . Secondary . | . . . . . . . . . . . . . . . . . . . . . . . . . . . . . Self-Inflicted Damage 371 | . . . 27 54 . . . . . 28 . . . . . 157 . . . . . . . . 105 . . . Shots 11 | . . . 1 1 . . . . . 1 . . . . . 6 . . . . . . . . 2 . . . Rammed 1 | . . . . . 1 . . . . . . . . . . . . . . . . . . . . . . . Targets Rammed 1 | . . . . . 1 . . . . . . . . . . . . . . . . . . . . . . . Kicked . | . . . . . . . . . . . . . . . . . . . . . . . . . . . . . Crushed . | . . . . . . . . . . . . . . . . . . . . . . . . . . . . . Highest Temperature 257 | 18 192 216 188 . 42 . . . . . . . . . . 53 39 114 . . 32 84 42 257 126 41 66 72 Average Temperature 49 | 10 45 79 45 . 11 . . . . . . . . . . 20 17 42 . . 17 41 21 138 46 18 25 26 Received Heat Transfer 2082 | . 120 216 534 . 747 12 . . . 12 . . . . . 9 18 26 45 27 57 . . . . 97 . 162 Siege Activations . | . . . . . . . . . . . . . . . . . . . . . . . . . . . . . Robots Corrupted . | . . . . . . . . . . . . . . . . . . . . . . . . . . . . . Combat Hostiles . | . . . . . . . . . . . . . . . . . . . . . . . . . . . . . Parts Fried 6 | . . . . . . . . . . . . . . . . . . . . . . . . . 2 4 . . Impact Corruptions 12 | . . . . . . . . . . . . . . . . . . . . . . . . . 4 8 . . Robots Melted . | . . . . . . . . . . . . . . . . . . . . . . . . . . . . . Combat Hostiles . | . . . . . . . . . . . . . . . . . . . . . . . . . . . . . Parts Melted 5 | . 2 1 2 . . . . . . . . . . . . . . . . . . . . . . . . . Heat Transferred 2997 | 37 1258 1036 666 . . . . . . . . . . . . . . . . . . . . . . . . . Parts Sabotaged . | . . . . . . . . . . . . . . . . . . . . . . . . . . . . . Parts Stolen 1 | . . . . . . . 1 . . . . . . . . . . . . . . . . . . . . . Parts Stripped . | . . . . . . . . . . . . . . . . . . . . . . . . . . . . . Power Chain Reactions 1 | . . . . . . . . . . . . . . . . 1 . . . . . . . . . . . . Alert | -11 -10 -10 -9 -9 -8 -7 -7 -7 -7 -6 -6 -6 -6 -6 -5 -5 -5 -5 -5 -5 -4 -4 -4 -4 -3 -3 -3 -2 ------- Run | Yrd Mat Min Mat Min Mat Fac Low Low Dat Pro Fac Low Low Zio Pro Fac Ext Cet Arc Hub Fac Upp Upp Zhi Pro Res Tes Res Peak Influence 1091 | 5 413 140 407 141 342 210 . . . . 164 . . . . 417 1022 1091 514 350 310 . . . . 155 191 531 Initial 560 | . 3 112 33 141 20 123 . . . . 63 . . . . 9 98 560 414 179 130 . . . . 70 18 97 Average 152 | 4 197 69 236 29 168 141 . . . . 56 . . . . 181 277 912 468 160 93 . . . . 51 82 310 Maximum Alert Level 3 | . 2 . 2 . 1 1 . . . . . . . . . 2 3 3 2 1 1 . . . . . . 2 Low Security (%) 70 | 100 38 100 38 100 70 59 . . . . 100 . . . . 63 35 . . 62 82 . . . . 100 100 15 Level 1 24 | . 52 . 56 . 29 40 . . . . . . . . . 34 39 . . 37 17 . . . . . . 57 Level 2 4 | . 8 . 4 . . . . . . . . . . . . 2 23 16 100 . . . . . . . . 27 Level 3 . | . . . . . . . . . . . . . . . . . 1 83 . . . . . . . . . . Level 4 . | . . . . . . . . . . . . . . . . . . . . . . . . . . . . . Level 5 . | . . . . . . . . . . . . . . . . . . . . . . . . . . . . . High Security . | . . . . . . . . . . . . . . . . . . . . . . . . . . . . . Max Security . | . . . . . . . . . . . . . . . . . . . . . . . . . . . . . Squads Dispatched 73 | . 4 . 5 . 5 4 . . . . 5 . . . . 12 4 . . 10 9 . . . . 1 7 7 Investigation 33 | . 3 . 4 . 3 2 . . . . 4 . . . . 5 1 . . 6 4 . . . . . 1 . Extermination 15 | . . . . . . 1 . . . . 1 . . . . 5 . . . 1 3 . . . . 1 3 . Reinforcement 20 | . 1 . 1 . 2 1 . . . . . . . . . 2 1 . . 3 2 . . . . . 3 4 Assault 2 | . . . . . . . . . . . . . . . . . 2 . . . . . . . . . . . Garrison 3 | . . . . . . . . . . . . . . . . . . . . . . . . . . . . 3 Intercept . | . . . . . . . . . . . . . . . . . . . . . . . . . . . . . Searches Triggered . | . . . . . . . . . . . . . . . . . . . . . . . . . . . . . Construction Impeded 3 | . . . . . . . . . . . . . . . . . 1 . . . . . . . . . . 2 Haulers Reinforced 1 | . . . . . . . . . . . . . . . . . . . . 1 . . . . . . . . Active Scanning Responses . | . . . . . . . . . . . . . . . . . . . . . . . . . . . . . Cargo Convoy Interrupts 1 | . . . . . . . . . . . . . . . . . . . . . . . . . . . . 1 Stealth | -11 -10 -10 -9 -9 -8 -7 -7 -7 -7 -6 -6 -6 -6 -6 -5 -5 -5 -5 -5 -5 -4 -4 -4 -4 -3 -3 -3 -2 --------- Run | Yrd Mat Min Mat Min Mat Fac Low Low Dat Pro Fac Low Low Zio Pro Fac Ext Cet Arc Hub Fac Upp Upp Zhi Pro Res Tes Res Distress Signals 21 | . 2 . 2 . 4 . . . . . . . . . . . 1 . . 6 1 . . . . 1 . 4 Communications Jammed . | . . . . . . . . . . . . . . . . . . . . . . . . . . . . . Distress Signals . | . . . . . . . . . . . . . . . . . . . . . . . . . . . . . Times Spotted 436 | . 26 13 48 4 46 7 4 . . 16 5 . . . 2 37 39 17 7 27 25 1 3 . 2 15 15 77 Peak Tracking Total 23 | . 5 3 6 4 5 8 4 . . 9 3 . . . 1 7 11 5 2 15 7 1 4 . 1 8 2 23 Tactical Retreats 58 | . 4 2 2 . 1 2 1 . . 2 3 . . . 1 6 . 1 . 6 7 2 . . . 5 1 12 Traps | -11 -10 -10 -9 -9 -8 -7 -7 -7 -7 -6 -6 -6 -6 -6 -5 -5 -5 -5 -5 -5 -4 -4 -4 -4 -3 -3 -3 -2 ------- Run | Yrd Mat Min Mat Min Mat Fac Low Low Dat Pro Fac Low Low Zio Pro Fac Ext Cet Arc Hub Fac Upp Upp Zhi Pro Res Tes Res Traps Triggered 12 | . 2 . . . . . . . . . . . . . . 2 3 . . . 1 . . . . . 1 3 Indirectly . | . . . . . . . . . . . . . . . . . . . . . . . . . . . . . Trap Hack Attempts . | . . . . . . . . . . . . . . . . . . . . . . . . . . . . . Triggered . | . . . . . . . . . . . . . . . . . . . . . . . . . . . . . Disarmed . | . . . . . . . . . . . . . . . . . . . . . . . . . . . . . Reprogrammed . | . . . . . . . . . . . . . . . . . . . . . . . . . . . . . Reused . | . . . . . . . . . . . . . . . . . . . . . . . . . . . . . Traps Extracted . | . . . . . . . . . . . . . . . . . . . . . . . . . . . . . Installed . | . . . . . . . . . . . . . . . . . . . . . . . . . . . . . Triggered . | . . . . . . . . . . . . . . . . . . . . . . . . . . . . . Machines | -11 -10 -10 -9 -9 -8 -7 -7 -7 -7 -6 -6 -6 -6 -6 -5 -5 -5 -5 -5 -5 -4 -4 -4 -4 -3 -3 -3 -2 ---------- Run | Yrd Mat Min Mat Min Mat Fac Low Low Dat Pro Fac Low Low Zio Pro Fac Ext Cet Arc Hub Fac Upp Upp Zhi Pro Res Tes Res Machines Disabled 32 | . 1 . . . 3 1 . . . 1 . . . . . 6 2 1 1 . . . . . . . 15 1 Max in Single Turn 4 | . 1 . . . 1 1 . . . 1 . . . . . 4 1 . . . . . . . . . 1 1 Garrison Access 5 | . . . . . . . . . . . 1 . . . . . . . . 1 . . . . . 1 1 1 Network Hub 2 | . . . . . . . . . . . . . . . . . . . . 2 . . . . . . . . Machines Repaired . | . . . . . . . . . . . . . . . . . . . . . . . . . . . . . Machines Dismantled . | . . . . . . . . . . . . . . . . . . . . . . . . . . . . . Machines Sabotaged 2 | . . . . . . . . . . . . . . . . . . . . 2 . . . . . . . . Overloaded Fab Kills . | . . . . . . . . . . . . . . . . . . . . . . . . . . . . . Hacking | -11 -10 -10 -9 -9 -8 -7 -7 -7 -7 -6 -6 -6 -6 -6 -5 -5 -5 -5 -5 -5 -4 -4 -4 -4 -3 -3 -3 -2 --------- Run | Yrd Mat Min Mat Min Mat Fac Low Low Dat Pro Fac Low Low Zio Pro Fac Ext Cet Arc Hub Fac Upp Upp Zhi Pro Res Tes Res Machines Accessed 143 | . 8 . 15 . 12 3 . . 4 1 17 . . 1 . 22 4 . 1 10 15 1 . 5 . 6 14 4 Terminals 80 | . 5 . 10 . 7 1 . . . . 9 . . . . 14 4 . . 8 6 1 . . . 3 10 2 Fabricators 12 | . . . . . . 1 . . . . 4 . . . . 3 . . . . 3 . . . . . 1 . Repair Stations 10 | . 1 . 2 . 1 . . . . . . . . . . 2 . . . . 1 . . . . 2 1 . Recycling Units 11 | . 2 . 2 . 2 1 . . . . . . . . . 2 . . . . 2 . . . . . . . Scanalyzers 8 | . . . 1 . 2 . . . . . 2 . . . . . . . . . 2 . . . . . 1 . Garrison Access 10 | . . . . . . . . . . . 2 . . . . 1 . . . 2 1 . . . . 1 1 2 Total Hacks 497 | . 30 . 40 . 28 11 . . 29 1 64 . . 4 . 75 15 . 25 29 47 1 . 18 . 27 46 7 Successful 362 | . 22 . 23 . 16 5 . . 29 1 44 . . 4 . 49 5 . 25 22 32 1 . 18 . 23 38 5 Failed 135 | . 8 . 17 . 12 6 . . . . 20 . . . . 26 10 . . 7 15 . . . . 4 8 2 Catastrophic 17 | . 1 . 2 . 1 2 . . . . 3 . . . . 3 1 . . 1 2 . . . . . . 1 Database Lockouts . | . . . . . . . . . . . . . . . . . . . . . . . . . . . . . Manual 207 | . 14 . 28 . 16 8 . . . . 24 . . . . 41 15 1 . 20 17 . . . . 10 12 1 Terminals 265 | . 12 . 29 . 16 4 . . . . 40 . . . . 53 15 . . 24 26 1 . . . 14 27 4 Fabricators 31 | . . . . . . 3 . . . . 9 . . . . 9 . . . . 8 . . . . . 2 . Repair Stations 44 | . 11 . 4 . 1 . . . . . . . . . . 6 . . . . 2 . . . . 12 8 . Recycling Units 25 | . 7 . 4 . 4 4 . . . . . . . . . 3 . . . . 3 . . . . . . . Scanalyzers 36 | . . . 3 . 7 . . . . . 13 . . . . . . . . . 6 . . . . . 7 . Garrison Access 19 | . . . . . . . . . . . 2 . . . . 4 . . . 5 2 . . . . 1 2 3 Terminal Hacks 187 | . 4 . 5 . 3 1 . . 29 1 19 . . 4 . 24 4 . 25 10 13 1 . 18 . 7 17 2 Record 46 | . . . . . . . . . 11 1 1 . . . . . . . 25 . . 1 . 6 . 1 . . Part Schematic 31 | . 3 . 1 . . . . . 10 . 1 . . 4 . 5 . . . . 1 . . 4 . 1 1 . Robot Schematic 5 | . . . . . . . . . 5 . . . . . . . . . . . . . . . . . . . Robot Analysis 5 | . . . . . . . . . . . . . . . . . . . . . . . . 4 . . 1 . Prototype ID Bank 7 | . . . . . . . . . 3 . . . . . . . . . . . . . . 4 . . . . Open Door 2 | . . . . . . . . . . . . . . . . 1 . . . . . . . . . . 1 . Level Access Points 4 | . . . . . . . . . . . 1 . . . . 1 . . . . 1 . . . . . 1 . Branch Access Points 3 | . . . . . . . . . . . 1 . . . . 1 . . . . 1 . . . . . . . Emergency Access Points 3 | . . . . . . . . . . . . . . . . . . . . 1 1 . . . . . . 1 Machine Index 5 | . . . . . . . . . . . 1 . . . . 1 . . . . 1 . . . . 1 . 1 Terminal Index 6 | . 1 . 1 . 1 1 . . . . . . . . . 1 . . . 1 . . . . . . . . Repair Station Index 1 | . . . . . . . . . . . . . . . . . . . . . . . . . . . 1 . Scanalyzer Index 1 | . . . . . . . . . . . . . . . . . . . . . . . . . . . 1 . Alert Level 11 | . . . 1 . 1 . . . . . . . . . . 1 2 . . 3 1 . . . . . 2 . Unreport Threat 9 | . . . 2 . 1 . . . . . . . . . . 2 2 . . 1 1 . . . . . . . Locate Traps 3 | . . . . . . . . . . . 1 . . . . 1 . . . . . . . . . 1 . . Maintenance Status 1 | . . . . . . . . . . . 1 . . . . . . . . . . . . . . . . . Security Status 2 | . . . . . . . . . . . 1 . . . . . . . . 1 . . . . . . . . Surveillance Status 1 | . . . . . . . . . . . . . . . . . . . . . . . . . . 1 . . Patrol Status 1 | . . . . . . . . . . . 1 . . . . . . . . . . . . . . . . . Transport Status 1 | . . . . . . . . . . . 1 . . . . . . . . . . . . . . . . . Recall Investigation 11 | . . . . . . . . . . . 4 . . . . 3 . . . . 3 . . . . . 1 . Recall Extermination 12 | . . . . . . . . . . . 1 . . . . 4 . . . 1 2 . . . . 1 3 . Recall Reinforcements 6 | . . . . . . . . . . . . . . . . 2 . . . . 1 . . . . . 3 . Hauler Manifests 2 | . . . . . . . . . . . 1 . . . . . . . . . . . . . . 1 . . Zone Layout 8 | . . . . . . . . . . . 3 . . . . 1 . . . 2 . . . . . . 2 . Fabricator Hacks 28 | . . . . . . 3 . . . . 8 . . . . 8 . . . . 7 . . . . . 2 . Network Status 4 | . . . . . . 1 . . . . . . . . . 2 . . . . 1 . . . . . . . Load Schematic 12 | . . . . . . 1 . . . . 4 . . . . 3 . . . . 3 . . . . . 1 . Build 12 | . . . . . . 1 . . . . 4 . . . . 3 . . . . 3 . . . . . 1 . Repair Station Hacks 42 | . 10 . 4 . . . . . . . . . . . . 6 . . . . 2 . . . . 12 8 . Scan Component 21 | . 5 . 2 . . . . . . . . . . . . 3 . . . . 1 . . . . 6 4 . Repair 21 | . 5 . 2 . . . . . . . . . . . . 3 . . . . 1 . . . . 6 4 . Recycling Unit Hacks 11 | . 3 . 2 . 2 . . . . . . . . . . 2 . . . . 2 . . . . . . . Report Inventory 9 | . 3 . 1 . 1 . . . . . . . . . . 2 . . . . 2 . . . . . . . Retrieve Components 2 | . . . 1 . 1 . . . . . . . . . . . . . . . . . . . . . . . Scanalyzer 30 | . . . 2 . 7 . . . . . 11 . . . . . . . . . 4 . . . . . 6 . Insert Component 14 | . . . 1 . 3 . . . . . 5 . . . . . . . . . 2 . . . . . 3 . Analyze 16 | . . . 1 . 4 . . . . . 6 . . . . . . . . . 2 . . . . . 3 . Garrison Access Hacks 7 | . . . . . . . . . . . 1 . . . . . . . . 1 1 . . . . 1 1 2 Seal Access 5 | . . . . . . . . . . . 1 . . . . . . . . 1 . . . . . 1 1 1 Coupler Status 2 | . . . . . . . . . . . . . . . . . . . . . 1 . . . . . . 1 Unauthorized Hacks 57 | . 5 . 10 . 4 1 . . . . 5 . . . . 9 1 . . 11 3 . . . . 3 4 1 Terminals 40 | . 3 . 8 . 2 . . . . . 4 . . . . 6 1 . . 8 2 . . . . 3 3 . Track 1 | . . . . . . . . . . . . . . . . . . . . 1 . . . . . . . . Assimilate 17 | . . . 5 . 1 . . . . . . . . . . 4 . . . 2 2 . . . . . 3 . Botnet 9 | . 2 . 2 . . . . . . . 3 . . . . 1 . . . . . . . . . 1 . . Operators 8 | . 1 . 1 . 1 . . . . . 1 . . . . 1 1 . . . . . . . . 2 . . Sabotage 5 | . . . . . . . . . . . . . . . . . . . . 5 . . . . . . . . Fabricators . | . . . . . . . . . . . . . . . . . . . . . . . . . . . . . Repair Stations . | . . . . . . . . . . . . . . . . . . . . . . . . . . . . . Recycling Units 8 | . 2 . 2 . 2 1 . . . . . . . . . 1 . . . . . . . . . . . . Recyclers 2 | . . . . . . 1 . . . . . . . . . 1 . . . . . . . . . . . . Tunnel 6 | . 2 . 2 . 2 . . . . . . . . . . . . . . . . . . . . . . . Scanalyzers . | . . . . . . . . . . . . . . . . . . . . . . . . . . . . . Garrison Access 9 | . . . . . . . . . . . 1 . . . . 2 . . . 3 1 . . . . . 1 1 Broadcast 1 | . . . . . . . . . . . . . . . . . . . . 1 . . . . . . . . Redirect 2 | . . . . . . . . . . . . . . . . 1 . . . 1 . . . . . . . . Watchers 6 | . . . . . . . . . . . 1 . . . . 1 . . . 1 1 . . . . . 1 1 Data Cores Recovered . | . . . . . . . . . . . . . . . . . . . . . . . . . . . . . Used . | . . . . . . . . . . . . . . . . . . . . . . . . . . . . . Hacking Detections 83 | . 5 . 10 . 8 3 . . . . 13 . . . . 14 4 . . 6 9 . . . . 4 7 . Full Trace Events 20 | . 1 . 2 . 1 2 . . . . 4 . . . . 4 1 . . . 4 . . . . . 1 . Feedback Events 2 | . . . . . . 2 . . . . . . . . . . . . . . . . . . . . . . Corruption 1 | . . . . . . 1 . . . . . . . . . . . . . . . . . . . . . . Hackware Fried 1 | . . . . . . 1 . . . . . . . . . . . . . . . . . . . . . . Feedback Blocked . | . . . . . . . . . . . . . . . . . . . . . . . . . . . . . Robot Schematics Acquired 12 | . . . . . . . . . 5 . . . . 3 . . . . . . . . . . . . 4 . Robots Built . | . . . . . . . . . . . . . . . . . . . . . . . . . . . . . Authchips . | . . . . . . . . . . . . . . . . . . . . . . . . . . . . . Time . | . . . . . . . . . . . . . . . . . . . . . . . . . . . . . Total Robot Build Rating . | . . . . . . . . . . . . . . . . . . . . . . . . . . . . . Part Schematics Acquired 69 | . 3 . 2 . 3 . . . 10 . 6 . . 18 . 5 . . . . 3 . . 4 . 1 14 . Parts Built 13 | . . . . . . 1 . . . . 4 . . . . 4 . . . . 3 . . . . . 1 . Authchips . | . . . . . . . . . . . . . . . . . . . . . . . . . . . . . Time 758 | . . . . . . 25 . . . . 247 . . . . 198 . . . . 271 . . . . . 17 . Total Part Build Rating 73 | . . . . . . 1 . . . . 24 . . . . 27 . . . . 20 . . . . . 1 . Parts Repaired 21 | . 5 . 2 . . . . . . . . . . . . 3 . . . . 1 . . . . 6 4 . Time 847 | . 148 . 83 . . . . . . . . . . . . 130 . . . . 34 . . . . 278 174 . Parts Recycled . | . . . . . . . . . . . . . . . . . . . . . . . . . . . . . Recycled Matter . | . . . . . . . . . . . . . . . . . . . . . . . . . . . . . Retrieved Matter . | . . . . . . . . . . . . . . . . . . . . . . . . . . . . . Retrieved Components 10 | . . . 9 . 1 . . . . . . . . . . . . . . . . . . . . . . . Parts Scanalyzed 12 | . . . 1 . 3 . . . . . 5 . . . . . . . . . 2 . . . . . 1 . Part Schematics Acquired 12 | . . . 1 . 3 . . . . . 5 . . . . . . . . . 2 . . . . . 1 . Parts Damaged 1 | . . . . . . . . . . . . . . . . . . . . . . . . . . . 1 . Bothacking | -11 -10 -10 -9 -9 -8 -7 -7 -7 -7 -6 -6 -6 -6 -6 -5 -5 -5 -5 -5 -5 -4 -4 -4 -4 -3 -3 -3 -2 ------------ Run | Yrd Mat Min Mat Min Mat Fac Low Low Dat Pro Fac Low Low Zio Pro Fac Ext Cet Arc Hub Fac Upp Upp Zhi Pro Res Tes Res Used RIF Installer . | . . . . . . . . . . . . . . . . . . . . . . . . . . . . . Robots Hacked 2 | . . . . . . . . . . . . . . . . . 1 . . . 1 . . . . . . . Non-combat 2 | . . . . . . . . . . . . . . . . . 1 . . . 1 . . . . . . . Combat . | . . . . . . . . . . . . . . . . . . . . . . . . . . . . . Robot Hacks Applied 2 | . . . . . . . . . . . . . . . . . 1 . . . 1 . . . . . . . no_distress 1 | . . . . . . . . . . . . . . . . . 1 . . . . . . . . . . . find_chute 1 | . . . . . . . . . . . . . . . . . . . . . 1 . . . . . . . Relay Couplers Released . | . . . . . . . . . . . . . . . . . . . . . . . . . . . . . Fabnet Peak Effective % . | . . . . . . . . . . . . . . . . . . . . . . . . . . . . . Robots Rewired 21 | . . . . . . . . . . . . . . . . . 21 . . . . . . . . . . . Allies Hacked . | . . . . . . . . . . . . . . . . . . . . . . . . . . . . . Hacks Repelled . | . . . . . . . . . . . . . . . . . . . . . . . . . . . . . Allies | -11 -10 -10 -9 -9 -8 -7 -7 -7 -7 -6 -6 -6 -6 -6 -5 -5 -5 -5 -5 -5 -4 -4 -4 -4 -3 -3 -3 -2 -------- Run | Yrd Mat Min Mat Min Mat Fac Low Low Dat Pro Fac Low Low Zio Pro Fac Ext Cet Arc Hub Fac Upp Upp Zhi Pro Res Tes Res Total Allies 47 | . . . 2 . 1 . . . . 1 . . . . . 3 33 . . 2 2 . . . . . 3 . Largest Group 18 | . . . 2 2 3 3 . . . 1 . . . . . 2 18 10 3 1 1 . . . . . 3 . Highest-Rated Group 627 | . . . 20 20 30 30 . . . 96 . . . . . 52 627 385 78 26 45 . . . . . 116 . Highest-Rated Ally 159 | . . . 10 10 10 10 . . . 96 . . . . . 26 159 134 39 26 45 . . . . . 45 . Total Orders 49 | . . . 17 8 9 1 . . . . . . . . . 3 . . . 1 4 . . . . . 6 . STAY 27 | . . . 8 4 4 1 . . . . . . . . . 2 . . . 1 3 . . . . . 4 . FOLLOW 21 | . . . 9 4 5 . . . . . . . . . . 1 . . . . 1 . . . . . 1 . RETURN 1 | . . . . . . . . . . . . . . . . . . . . . . . . . . . 1 . Ally Attacks 308 | . . . . . . . . . . 13 . . . . . . 225 53 17 . . . . . . . . . Total Damage 7089 | . . . . . . . . . . 813 . . . . . . 4964 938 374 . . . . . . . . . Kills 56 | . . . . . . . . . . 4 . . . . . . 41 9 2 . . . . . . . . . Allies Corrupted . | . . . . . . . . . . . . . . . . . . . . . . . . . . . . . Allies Melted . | . . . . . . . . . . . . . . . . . . . . . . . . . . . . . Intel | -11 -10 -10 -9 -9 -8 -7 -7 -7 -7 -6 -6 -6 -6 -6 -5 -5 -5 -5 -5 -5 -4 -4 -4 -4 -3 -3 -3 -2 ------- Run | Yrd Mat Min Mat Min Mat Fac Low Low Dat Pro Fac Low Low Zio Pro Fac Ext Cet Arc Hub Fac Upp Upp Zhi Pro Res Tes Res Robot Analysis Total 5 | . . . . . . . . . . . . . . . . . . . . . . . . 4 . . 1 . Derelict Logs Recovered 18 | . . 2 . 1 . . 3 3 . 3 . 2 1 2 . . . . . . . 1 . . . . . . Drone Launches 1 | . . . . . . . . . . . . . . . . . . . . . . . . . . . 1 . Drone Recoveries 1 | . . . . . . . . . . . . . . . . . . . . . . . . . . . 1 . Exploration | -11 -10 -10 -9 -9 -8 -7 -7 -7 -7 -6 -6 -6 -6 -6 -5 -5 -5 -5 -5 -5 -4 -4 -4 -4 -3 -3 -3 -2 ------------- Run | Yrd Mat Min Mat Min Mat Fac Low Low Dat Pro Fac Low Low Zio Pro Fac Ext Cet Arc Hub Fac Upp Upp Zhi Pro Res Tes Res Turns Passed 25213 | 24 1494 1272 2701 2490 3467 511 334 232 30 884 1470 265 298 445 264 1384 921 222 267 918 1166 267 203 57 226 907 1884 610 Spaces Moved 30830 | 11 818 595 1259 774 1735 661 795 610 80 1061 2944 810 642 1179 590 3156 940 246 291 1309 2265 620 474 148 586 1499 3512 1220 Core 59 | . . . . . 1 . . . . . . . . . . . . . . . . . . . . . . 58 Treads 1348 | . . . . . 1304 44 . . . . . . . . . . . . . . . . . . . . . . Legs 300 | 11 289 . . . . . . . . . . . . . . . . . . . . . . . . . . . Wheels 3587 | . 529 595 1259 774 430 . . . . . . . . . . . . . . . . . . . . . . . Hover . | . . . . . . . . . . . . . . . . . . . . . . . . . . . . . Flight 25536 | . . . . . . 617 795 610 80 1061 2944 810 642 1179 590 3156 940 246 291 1309 2265 620 474 148 586 1499 3512 1162 Fastest Speed 24 | 120 95 110 110 135 110 37 37 37 37 37 32 32 32 32 32 29 29 29 29 29 30 32 32 32 32 30 30 24 Average Speed 49 | 120 108 114 128 135 154 45 37 37 37 38 33 32 32 32 32 29 29 29 29 29 31 32 32 32 32 34 30 28 Slowest Speed 450 | 120 120 125 135 135 450 160 37 37 37 112 40 32 32 32 32 32 29 29 29 30 32 32 32 32 32 102 34 100 Overloaded Moves . | . . . . . . . . . . . . . . . . . . . . . . . . . . . . . Propulsion Burnouts . | . . . . . . . . . . . . . . . . . . . . . . . . . . . . . Robots Hopped 94 | . . . . . . 1 . . . . 11 1 . . . 28 . . . 10 11 . . . . 5 14 13 Cave-ins Triggered 2 | . . . . . . . . . . 1 . . . . . . . . . . . . . . . . 1 . Exploration Rate (%) 67 | 3 85 79 90 100 88 9 80 70 72 86 48 90 68 86 66 62 88 64 95 59 39 83 62 63 69 28 96 33 Regions Visited 28 Branch Regions 19 Pre-discovered Areas 17 | . 2 1 2 1 2 . . . 1 2 . 1 . 2 . . . . . . . . . 3 . . . . Known Exits Taken 25 | . . . 1 1 1 1 1 1 1 1 1 1 1 1 1 1 1 1 1 1 1 1 1 1 1 1 1 . Unknown Exits Taken 3 | 1 1 1 . . . . . . . . . . . . . . . . . . . . . . . . . . Scrap Searched 35 | . . . . 2 . . 4 3 . 4 . 2 6 4 1 . . . . . . 3 2 . 4 . . . Spaces Dug 339 | . . . 6 . 5 6 . . . 110 19 1 1 . . 62 . . . 12 13 . . . . 1 68 35 Terrain Destroyed 912 | . . 1 10 14 69 6 . . . 139 19 1 1 . . 108 16 151 . 12 13 16 16 . 107 13 113 87 Melee 155 | . . . 1 . 5 6 . . . 1 19 1 1 . . 47 . . . 12 13 . . . . 1 32 16 Projectile 1 | . . 1 . . . . . . . . . . . . . . . . . . . . . . . . . . AOE 756 | . . . 9 14 64 . . . . 138 . . . . . 61 16 151 . . . 16 16 . 107 12 81 71 Terrain Rammed . | . . . . . . . . . . . . . . . . . . . . . . . . . . . . . Walls Destroyed . | . . . . . . . . . . . . . . . . . . . . . . . . . . . . . Machines Disabled . | . . . . . . . . . . . . . . . . . . . . . . . . . . . . . Actions | -11 -10 -10 -9 -9 -8 -7 -7 -7 -7 -6 -6 -6 -6 -6 -5 -5 -5 -5 -5 -5 -4 -4 -4 -4 -3 -3 -3 -2 --------- Run | Yrd Mat Min Mat Min Mat Fac Low Low Dat Pro Fac Low Low Zio Pro Fac Ext Cet Arc Hub Fac Upp Upp Zhi Pro Res Tes Res Total 39480 | 17 1336 1097 2069 2216 2239 862 824 615 79 1511 3380 813 732 1244 664 3460 1576 377 429 1803 2678 683 523 155 611 1876 4180 1431 Wait 7495 | 2 451 455 605 1439 322 168 18 1 . 422 394 2 90 65 75 226 577 118 104 483 365 58 49 . 17 355 479 155 Move 30620 | 10 817 594 1258 773 1734 658 794 609 79 1059 2921 807 641 1178 589 3103 939 245 290 1289 2244 619 473 147 585 1488 3483 1194 Hop 86 | . . . . . . 1 . . . . 11 1 . . . 24 . . . 9 9 . . . . 5 13 13 Pick Up 64 | 1 7 2 13 . 9 3 2 1 . . 4 1 . . . 3 . . 1 . 4 . . . . 2 11 . Fast Attach 121 | 1 5 1 19 . 8 2 1 . . 2 9 . . . . 10 . . 1 . 7 . . 4 . 7 39 5 Attach 44 | . 3 1 2 . 7 6 2 . . 4 3 . . . . 1 . . . . 4 . . . . 3 2 6 Detach 12 | . . . . . . . . 1 . 3 2 . . . . . . . . . 2 . . . . 1 . 3 Swap 69 | 1 2 2 10 3 15 2 1 2 . . 6 . . . . 1 2 . 3 2 4 4 . 1 . 6 2 . Drop 121 | . 6 . 16 . 7 14 1 1 . 1 7 1 . . . 5 . . 2 2 6 . . 3 . 3 42 4 Fire 457 | 2 45 42 145 1 130 . . . . 11 . . . . . 8 34 13 . . 1 2 1 . 7 1 8 6 Melee 286 | . . . 1 . 6 8 5 . . 8 23 1 1 1 . 61 . 1 28 18 19 . . . 2 5 78 20 Ram 1 | . . . . . 1 . . . . . . . . . . . . . . . . . . . . . . . Kick . | . . . . . . . . . . . . . . . . . . . . . . . . . . . . . Crush . | . . . . . . . . . . . . . . . . . . . . . . . . . . . . . Escape Stasis 104 | . . . . . . . . . . 1 . . . . . 18 24 . . . 13 . . . . . 23 25 Rewire . | . . . . . . . . . . . . . . . . . . . . . . . . . . . . . Trap . | . . . . . . . . . . . . . . . . . . . . . . . . . . . . . Miscellaneous . | . . . . . . . . . . . . . . . . . . . . . . . . . . . . . Route ------- -11/Scrapyard -10/Materials (discovered 4 exits: *Mat x3 / [*Min]) -10/Mines (discovered 4 exits: *Mat x2 / [*Exi] / [*Sub]) -9/Materials (discovered 4 exits: *Mat x3 / *Min) -9/Mines (discovered 2 exits: *Mat x2) -8/Materials (discovered 2 exits: *Fac x2) -7/Factory (discovered 3 exits: Sto / *Low x2) -7/Lower Caves -7/Lower Caves (discovered 2 exits: *Fac / *Dat) -7/Data Miner -6/Proximity Caves -6/Factory (discovered 6 exits: *Fac x4 / *Low x2) -6/Lower Caves -6/Lower Caves -6/Zion -5/Proximity Caves -5/Factory (discovered 8 exits: *Fac x4 / *Upp x2 / *Ext x2) -5/Extension (discovered 2 exits: *Fac / *Cet) -5/Cetus (discovered 2 exits: *Fac / *Arc) -5/Archives (discovered 3 exits: *Fac / *Hub x2) -5/Hub_04(d) (discovered 3 exits: *Fac x3) -4/Factory (discovered 6 exits: *Res x4 / *Upp x2) -4/Upper Caves -4/Upper Caves -4/Zhirov -3/Proximity Caves -3/Research (discovered 3 exits: *Res / *Arm / *Tes) -3/Testing -2/Research (discovered 1 exit: Qua) History --------- Turn | Location | Event 11 | -11/Scrapyard | Discovered new exit (range 3) 25 | -11/Scrapyard | Entered Materials 304 | -10/Materials | Build established: Mutant 485 | -10/Materials | Discovered new exit (range 7) 709 | -10/Materials | Discovered new exit (range 16) 950 | -10/Materials | Discovered new exit (range 12) 1114 | -10/Materials | Repaired Seismic Detector 1148 | -10/Materials | Repaired Particle Gun 1175 | -10/Materials | Repaired Assault Rifle 1215 | -10/Materials | Repaired Lgt. Nuclear Core 1242 | -10/Materials | Repaired Lgt. Ion Engine 1286 | -10/Materials | Discovered new exit (range 7) 1519 | -10/Materials | Entered Mines 1594 | -10/Mines | Excavation squad dispatched 1594 | -10/Mines | A large section of the Mines collapsed 1844 | -10/Mines | Excavation squad dispatched 2094 | -10/Mines | Excavation squad dispatched 2344 | -10/Mines | Excavation squad dispatched 2392 | -10/Mines | Deemed a non-threat by the Exiles lab entrance 2392 | -10/Mines | Discovered new exit (range 5) 2436 | -10/Mines | Core integrity fell below 50% 2535 | -10/Mines | Discovered new exit (range 11) 2726 | -10/Mines | Core integrity fell below 20% 2761 | -10/Mines | Discovered new exit (range 5) 2777 | -10/Mines | Discovered new exit (range 11) 2791 | -10/Mines | Entered Materials 2791 | -9/Materials | Evolved 2 slots: Utility x2 3078 | -9/Materials | Lost 3 parts (1p1u1w) 3131 | -9/Materials | Discovered new exit (range 7) 3499 | -9/Materials | Build established: Scavenger-Mutant 3741 | -9/Materials | Discovered new exit (range 16) 3919 | -9/Materials | Build established: Mutant 3951 | -9/Materials | Identified exit to Mines 4447 | -9/Materials | Discovered new exit (range 16) 4855 | -9/Materials | Repaired Imp. Assault Rifle 4879 | -9/Materials | Discovered new exit (range 16) 4959 | -9/Materials | Repaired Arm. Wheel 5492 | -9/Materials | Entered Mines 5492 | -9/Mines | Accompanied by 2 allies 5493 | -9/Mines | Assembled infested the area 5493 | -9/Mines | Learned location of Storage (-7) 5498 | -9/Mines | Assisted by a Guerilla fighting off Assembled 5514 | -9/Mines | Met a Derelict bent on vengeance 7131 | -9/Mines | Learned 4 Materials zone layouts 7200 | -9/Mines | Discovered new exit (range 8) 7238 | -9/Mines | Identified exit to Materials 7428 | -9/Mines | Discovered exit to Materials (range 7) 7982 | -9/Mines | Entered Materials 7982 | -8/Materials | Accompanied by 2 allies 7982 | -8/Materials | Evolved 2 slots: Utility x2 8189 | -8/Materials | Lost 3 parts (1p2u) 8678 | -8/Materials | Build established: Scavenger-Mutant 8940 | -8/Materials | Destroyed 7 combat bots 8942 | -8/Materials | Lost 5 parts (1p2n1u1w) 9280 | -8/Materials | Discovered new exit (range 10) 9306 | -8/Materials | Identified exit to Factory 9996 | -8/Materials | Discovered exit to Factory (range 16) 11448 | -8/Materials | Build established: Hacker-Mutant 11449 | -8/Materials | Entered Factory 11449 | -7/Factory | Accompanied by 3 allies 11449 | -7/Factory | Evolved 2 slots: Utility x2 11450 | -7/Factory | Identified exit to Storage 11567 | -7/Factory | Discovered new exit (range 7) 11569 | -7/Factory | Identified exit to Lower Caves 11699 | -7/Factory | Fabricated ECM Suite (x1) 11844 | -7/Factory | Discovered exit to Lower Caves (range 17) 11856 | -7/Factory | System Shield fried by hacking feedback 11960 | -7/Factory | Entered Lower Caves 11988 | -7/Lower Caves | Build established: Hacker-Ninja 12065 | -7/Lower Caves | Learned location of 1 exit from Factory 12176 | -7/Lower Caves | Encountered a Warlord checkpoint 12222 | -7/Lower Caves | Learned 8 Factory zone layouts 12222 | -7/Lower Caves | Learned location of 2 exits from Factory 12245 | -7/Lower Caves | Discovered new exit (range 10) 12247 | -7/Lower Caves | Identified exit to Lower Caves 12294 | -7/Lower Caves | Entered another Lower Caves area 12309 | -7/Lower Caves | Discovered new exit (range 14) 12314 | -7/Lower Caves | Identified exit to Factory 12364 | -7/Lower Caves | Encountered a Warlord checkpoint 12368 | -7/Lower Caves | Learned 8 Factory zone layouts 12392 | -7/Lower Caves | Learned Factory stockpile data 12501 | -7/Lower Caves | Discovered new exit (range 13) 12507 | -7/Lower Caves | Learned Factory emergency access door positions 12515 | -7/Lower Caves | Identified exit to Data Miner 12526 | -7/Lower Caves | Entered Data Miner 12526 | -7/Data Miner | Discovered new exit (range 6) 12530 | -7/Data Miner | Identified exit to Proximity Caves 12533 | -7/Data Miner | Met Data Miner 12542 | -7/Data Miner | Learned location of Section 7 (-2) 12542 | -7/Data Miner | Acquired the access code to Warlord's prototype stash 12547 | -7/Data Miner | Received God Mode back door access code from Data Miner 12556 | -7/Data Miner | Entered Proximity Caves 12627 | -6/Proximity Caves | Found Alien Artifact 12627 | -6/Proximity Caves | Identified Dimensional Node Initializer 12627 | -6/Proximity Caves | Initialized slip node 12659 | -6/Proximity Caves | Core integrity fell below 50% 12805 | -6/Proximity Caves | Learned Factory emergency access door positions 12847 | -6/Proximity Caves | Spotted B-75 Beast 13304 | -6/Proximity Caves | Crushed by falling debris 13327 | -6/Proximity Caves | Escorted by Enhanced Grunt 13436 | -6/Proximity Caves | Discovered exit to Factory (range 9) 13440 | -6/Proximity Caves | Entered Factory 13440 | -6/Factory | Evolved 2 slots: Utility x2 13441 | -6/Factory | Identified exit to Lower Caves 13441 | -6/Factory | Identified exit to Factory 13850 | -6/Factory | Fabricated Adv. System Shield? 13905 | -6/Factory | Build established: Wizard-Scout 14431 | -6/Factory | Fabricated Adv. Hacking Suite? 14473 | -6/Factory | Fabricated Adv. Hacking Suite? 14747 | -6/Factory | Fabricated Adv. Hacking Suite? 14910 | -6/Factory | Entered Lower Caves 14997 | -6/Lower Caves | Learned location of Zion (-6) 14999 | -6/Lower Caves | Discovered new exit (range 5) 15001 | -6/Lower Caves | Identified exit to Lower Caves 15175 | -6/Lower Caves | Entered another Lower Caves area 15198 | -6/Lower Caves | Learned Factory stockpile data 15390 | -6/Lower Caves | Spotted B-75 Beast 15464 | -6/Lower Caves | Discovered new exit (range 6) 15466 | -6/Lower Caves | Identified exit to Zion 15473 | -6/Lower Caves | Entered Zion 15485 | -6/Zion | Discovered new exit (range 21) 15569 | -6/Zion | Learned location of 1 exit from Factory 15575 | -6/Zion | Given A8's code to call for help 15585 | -6/Zion | Learned location of Armory (-3) 15597 | -6/Zion | Given the Hacking Drone Bay 15759 | -6/Zion | Learned location of 1 exit from Factory 15918 | -6/Zion | Identified exit to Proximity Caves 15918 | -6/Zion | Entered Proximity Caves 16171 | -5/Proximity Caves | Discovered exit to Factory (range 15) 16182 | -5/Proximity Caves | Entered Factory 16182 | -5/Factory | Evolved 2 slots: Propulsion x1, Utility x1 16183 | -5/Factory | Identified exit to Factory 16223 | -5/Factory | Identified exit to Upper Caves 16223 | -5/Factory | Identified exit to Extension 16623 | -5/Factory | Spotted B-75 Beast 16673 | -5/Factory | Fabricated Mni. Smartbomb Launcher? 16888 | -5/Factory | Fabricated Exp. Utility Shielding? 16990 | -5/Factory | Repaired Imp. Cesium-ion Thruster 17180 | -5/Factory | Repaired Imp. Cesium-ion Thruster 17326 | -5/Factory | Fabricated Mic. Antimatter Reactor? 17419 | -5/Factory | Repaired Power Sword? 17566 | -5/Factory | Entered Extension 17576 | -5/Extension | Rescued a captive Derelict 17581 | -5/Extension | Enhanced Grunt warped into view, answering call for help 17583 | -5/Extension | Enhanced Grunt warped into view, answering call for help 17629 | -5/Extension | Rescued a captive Derelict 17630 | -5/Extension | Rescued a captive Derelict 17654 | -5/Extension | Rescued a captive Derelict 17654 | -5/Extension | Rescued a captive Derelict 17712 | -5/Extension | Rescued a captive Derelict 17713 | -5/Extension | Rescued a captive Derelict 17719 | -5/Extension | Rescued a captive Derelict 17909 | -5/Extension | Spotted B-75 Beast 18117 | -5/Extension | Spotted B-75 Beast 18139 | -5/Extension | Allies destroyed B-75 Beast 18146 | -5/Extension | Allies destroyed B-75 Beast 18191 | -5/Extension | Rescued a captive Derelict 18291 | -5/Extension | Lost 5 allies 18421 | -5/Extension | Lost 4 allies 18438 | -5/Extension | Rescued A7 18447 | -5/Extension | Discovered exit to Factory (range 10) 18447 | -5/Extension | Discovered new exit (range 6) 18456 | -5/Extension | Identified exit to Cetus 18466 | -5/Extension | First assault squad dispatched 18487 | -5/Extension | Disrupted transfer network 18487 | -5/Extension | Entered Cetus 18487 | -5/Cetus | Accompanied by 10 allies (A7) 18490 | -5/Cetus | Spotted Cetus Guard 18490 | -5/Cetus | Spotted Cetus Guard 18490 | -5/Cetus | Spotted Cetus Guard 18490 | -5/Cetus | Spotted Cetus Guard 18492 | -5/Cetus | Acquired a Cetus Manufacturing Module code from A7 18498 | -5/Cetus | Destroyed 9 combat bots 18516 | -5/Cetus | Allies destroyed Cetus Guard 18517 | -5/Cetus | Allies destroyed Cetus Guard 18517 | -5/Cetus | Allies destroyed Cetus Guard 18523 | -5/Cetus | Allies destroyed Cetus Guard 18529 | -5/Cetus | Started Cetus Manufacturing Module 18542 | -5/Cetus | Cetus Manufacturing Module disabled 18545 | -5/Cetus | Lost 8 allies 18569 | -5/Cetus | Destroyed 7 combat bots 18572 | -5/Cetus | Discovered new exit (range 21) 18607 | -5/Cetus | Spotted Cetus Guard 18607 | -5/Cetus | Spotted Cetus Guard 18607 | -5/Cetus | Spotted Cetus Guard 18607 | -5/Cetus | Spotted Cetus Guard 18620 | -5/Cetus | Allies destroyed Cetus Guard 18621 | -5/Cetus | Allies destroyed Cetus Guard 18636 | -5/Cetus | Allies destroyed Cetus Guard 18642 | -5/Cetus | Discovered exit to Factory (range 21) 18651 | -5/Cetus | Allies destroyed Cetus Guard 18652 | -5/Cetus | Met Revision 17 18662 | -5/Cetus | Identified exit to Archives 18673 | -5/Cetus | Lost 5 allies 18709 | -5/Cetus | Entered Archives 18709 | -5/Archives | Accompanied by 3 allies 18819 | -5/Archives | Discovered new exit (range 22) 18865 | -5/Archives | Core integrity fell below 50% 18873 | -5/Archives | Unable to access archive contents 18875 | -5/Archives | Discovered new exit (range 22) 18909 | -5/Archives | Discovered exit to Factory (range 22) 18919 | -5/Archives | Unable to access archive contents 18922 | -5/Archives | Unable to access archive contents 18927 | -5/Archives | Unable to access archive contents 18975 | -5/Archives | Identified exit to Hub_04(d) 18976 | -5/Archives | Entered Hub_04(d) 18976 | -5/Hub_04(d) | Discovered exit to Factory (range 11) 19025 | -5/Hub_04(d) | Discovered exit to Factory (range 5) 19025 | -5/Hub_04(d) | Discovered exit to Factory (range 19) 19823 | -5/Hub_04(d) | Network Hub disabled 19853 | -5/Hub_04(d) | Spotted Lightning 19853 | -5/Hub_04(d) | Spotted Lightning 19853 | -5/Hub_04(d) | Spotted Lightning 19868 | -5/Hub_04(d) | Network Hub disabled 19887 | -5/Hub_04(d) | Spotted Lightning 19887 | -5/Hub_04(d) | Spotted Lightning 19887 | -5/Hub_04(d) | Spotted Lightning 19894 | -5/Hub_04(d) | Entered Factory 19894 | -4/Factory | Evolved 2 slots: Power x1, Utility x1 20034 | -4/Factory | Fabricated Exp. Utility Shielding? 20286 | -4/Factory | Fabricated Mni. Smartbomb Launcher? 20577 | -4/Factory | Repaired Mic. Antimatter Reactor? 20796 | -4/Factory | Discovered new exit (range 16) 20808 | -4/Factory | Identified exit to Research 20810 | -4/Factory | Build established: Wizard-Ninja 20814 | -4/Factory | Discovered exit to Research (range 15) 20923 | -4/Factory | Identified exit to Upper Caves 21038 | -4/Factory | Fabricated Adv. Cloaking Device (x1) 21060 | -4/Factory | Entered Upper Caves 21072 | -4/Upper Caves | Attracted the attention of an 0b10 checkpoint 21295 | -4/Upper Caves | Discovered new exit (range 5) 21296 | -4/Upper Caves | Identified exit to Upper Caves 21327 | -4/Upper Caves | Entered another Upper Caves area 21428 | -4/Upper Caves | Encountered a Warlord checkpoint 21529 | -4/Upper Caves | Discovered new exit (range 3) 21530 | -4/Upper Caves | Identified exit to Zhirov 21530 | -4/Upper Caves | Entered Zhirov 21530 | -4/Zhirov | Discovered new exit (range 3) 21531 | -4/Zhirov | Identified exit to Proximity Caves 21536 | -4/Zhirov | Met Zhirov 21543 | -4/Zhirov | Learned location of Quarantine (-2) 21543 | -4/Zhirov | Learned location of Testing (-3) 21548 | -4/Zhirov | Zhirov requested help retrieving the SGEMP Prototype 21558 | -4/Zhirov | Found Alien Artifact 21558 | -4/Zhirov | Identified Integrated Reactor 21558 | -4/Zhirov | Installed Integrated Reactor, increased core energy generation (+10) 21587 | -4/Zhirov | Entered Proximity Caves 21720 | -3/Proximity Caves | Spotted B-86 Titan 21810 | -3/Proximity Caves | Discovered exit to Research (range 6) 21813 | -3/Proximity Caves | Entered Research 21813 | -3/Research | Evolved 2 slots: Propulsion x1, Utility x1 21855 | -3/Research | Repaired Adv. Weight Redist. System? 21926 | -3/Research | Spotted B-86 Titan 21941 | -3/Research | Repaired Imp. Cesium-ion Thruster? 21947 | -3/Research | Repaired Exp. Utility Shielding? 21998 | -3/Research | Repaired Mic. Antimatter Reactor 22018 | -3/Research | Repaired Mic. Antimatter Reactor 22027 | -3/Research | Repaired Field Propulsion Drive? 22555 | -3/Research | Discovered new exit (range 10) 22577 | -3/Research | Identified exit to Research 22629 | -3/Research | Discovered new exit (range 20) 22665 | -3/Research | Identified exit to Armory 22677 | -3/Research | Spotted B-86 Titan 22695 | -3/Research | Discovered new exit (range 22) 22715 | -3/Research | Spotted B-86 Titan 22720 | -3/Research | Identified exit to Testing 22720 | -3/Research | Entered Testing 22757 | -3/Testing | Found Prototype Energy Cannon 22757 | -3/Testing | Identified Disintegrator 22954 | -3/Testing | Found Prototype Energy Gun 22954 | -3/Testing | Identified Hyp. EM Gauss Rifle 22963 | -3/Testing | Repaired Broken Cld. Impulse Thruster 23005 | -3/Testing | Repaired Exp. Utility Shielding 23031 | -3/Testing | Repaired Powered Hammer 23079 | -3/Testing | Repaired Mni. Smartbomb Launcher 23137 | -3/Testing | Found Prototype Ballistic Cannon 23137 | -3/Testing | Identified Perforator 23149 | -3/Testing | Found Prototype Slashing Weapon 23149 | -3/Testing | Identified Nanosword 23159 | -3/Testing | Spotted Striker 23185 | -3/Testing | Found Prototype Device 23185 | -3/Testing | Identified Exp. Hardlight Generator 23234 | -3/Testing | Found Prototype Hackware 23234 | -3/Testing | Identified System Mapper 23320 | -3/Testing | Found Prototype Device 23320 | -3/Testing | Identified Exp. Thermal Shield 23354 | -3/Testing | Found Prototype Processor 23354 | -3/Testing | Identified Exp. Signal Interpreter 23363 | -3/Testing | Found Prototype Device 23363 | -3/Testing | Identified System Purifier 23575 | -3/Testing | Scanned by Researcher 23843 | -3/Testing | Spotted Striker 24161 | -3/Testing | Crushed by falling debris 24195 | -3/Testing | Found Portable AFG 24361 | -3/Testing | Fabricated Med. Storage Unit (x1) 24428 | -3/Testing | Stole the SGEMP Prototype 24533 | -3/Testing | Found Prototype Energy Cannon 24533 | -3/Testing | Identified Potential Cannon 24604 | -3/Testing | Entered Research 24604 | -2/Research | Evolved 2 slots: Propulsion x1, Utility x1 24605 | -2/Research | Identified exit to Quarantine 24641 | -2/Research | Spotted B-90 Cyclops 24984 | -2/Research | Spotted Executioner 24984 | -2/Research | Spotted Striker 24984 | -2/Research | Spotted Striker 24984 | -2/Research | Spotted Executioner 24985 | -2/Research | Cargo convoy interrupted 25044 | -2/Research | Spotted B-90 Cyclops 25059 | -2/Research | Lost 6 parts (2p4u) 25062 | -2/Research | Spotted B-90 Cyclops 25170 | -2/Research | Core integrity fell below 50% 25199 | -2/Research | Core integrity fell below 20% 25214 | -2/Research | Destroyed by P-80 Master with Gamma Rifle Last Messages --------------- 25182_ Slug penetrates Wall. 25182_ Penetrated by Slug. 25186_ Adv. System Shield destroyed. 25186_ Penetrated by Slug. 25186_ Slug penetrates Wall. 25187_ Penetrated by Slug. 25187_ Nanosword destroyed. 25189_ W-44 Eye sends out distress signal. 25196_ Adv. System Shield destroyed. 25196_ Enh. Optical Array destroyed. 25199_ Slug penetrates Wall. 25208_ System corrupted: Matter fused (-9). 25209_ Slug penetrates Wall. 25210_ Penetrated by Slug. 25210_ Slug penetrates H-88 Terminator. 25211_ Emergency Access malfunctions. 25213_ Penetrated by Slug. 25213_ Slug penetrates Wall. 25213_ Penetrated by Slug. 25214_ Catalytron disabled. Map ----- +----------------------------------------------------+ | | | | | | | | | | | | | | | | | | | | | | | | | | | | | | | | | | | | | | | ??????????????????#########??????????????????????? | | ?????###########??# #??????????????????????? | | ?????# #??# #??????????????????????? | | ?????# #??# #??????????????????????? | | ?????# #??# pgp #??????????????????????? | | ?????# "" "" #### "" #??????????????????????? | | ?????# ""S"" # H """ @#??????????????????????? | | ?????# """" # ## """h / ?????????????????????? | | ??????? # ## h # !???????????????????? | | ????????? ?# ## Y#####???#??????????????? | | ###########+#### ########/### #??????????????? | | % % % #??????????????? | | ???????????? | | % % #??????????????? | | #########+###############+### #??????????????? | | ?????# *###?????????????##?##??????????????? | | ?????# # #????????????????????????????????? | | ?????# ###????????????????????????????????? | | ?????# #??????????????????????????????????? | | ?????# #??????????????????????????????????? | | ?????# ! #??????????????????????????????????? | | ?????#w #??????????????????????????????????? | | ?????# #??????????????????????????????????? | | ????## #??????????????????????????????????? | | #####"#########??????????????????????????????????? | | ##??????????????????????????????????????? | | #???????????????????????????????????????? | | #???????????????????????????????????????? | | #???????????????????????????????????????? | | ##### #???????????????????????????????????????? | | # ##########??????????????????????????????? | +----------------------------------------------------+ Best States ------------- Heat Dissipation 49 Energy Generation 51 Energy Capacity 390 Matter Stores 300 Matter Capacity 300 Sight Range 22 Robot Scan Range 16 Terrain Scan Density 10 ECM Strength 2 Cloak Strength 4 Power Amplification 30 Additional Mass Support 9 Armor Coverage 300 Resistance: TH 10 Utility Shielding 90 Evasion (%) 76 Recoil Reduction 2 Offensive Hacking 62 Defensive Hacking 40 Item Schematics ----------------- ECM Suite | -10/Materials | Hacked Med. Storage Unit | -10/Materials | Hacked Sml. Storage Unit | -10/Materials | Hacked Hacking Suite | -9/Materials | Scanalyzed Mni. Grenade Launcher | -9/Materials | Hacked Imp. Flight Unit | -8/Materials | Scanalyzed Adv. Weight Redist. System | -8/Materials | Scanalyzed System Shield | -8/Materials | Scanalyzed Combat Drone Bay | -7/Data Miner | Free Lgt. Regenerative Plating | -7/Data Miner | Free Biomechanical Wings | -7/Data Miner | Free Gravity Neutralizer | -7/Data Miner | Free Imp. Lightning Gun | -7/Data Miner | Free Antigrav System | -7/Data Miner | Free Imp. Dynamic Insulation System | -7/Data Miner | Free Imp. Plasma Cutter | -7/Data Miner | Free Adv. System Shield | -7/Data Miner | Free Force Lance | -7/Data Miner | Free Adv. ECM Suite | -6/Factory | Scanalyzed Remote Datajack | -6/Factory | Scanalyzed Imp. Cesium-ion Thruster | -6/Factory | Scanalyzed Axe | -6/Factory | Scanalyzed Missile Launcher | -6/Factory | Scanalyzed Adv. Hacking Suite | -6/Factory | Hacked Riot Gun | -6/Zion | Free Battle Rifle | -6/Zion | Free Battle Cannon | -6/Zion | Free Slug Cannon | -6/Zion | Free Adv. Thermal Generator | -6/Zion | Archive Imp. Trap Scanner | -6/Zion | Archive Mass Driver | -6/Zion | Archive Imp. Coolant Injector | -6/Zion | Archive Imp. Medium Treads | -6/Zion | Archive Mak. Trap Scanner | -6/Zion | Archive Plasma Rifle | -6/Zion | Archive Imp. Launcher Guidance Computer | -6/Zion | Archive Imp. Proton Missile Launcher | -6/Zion | Archive Spk. Heavy Treads | -6/Zion | Archive Imp. Component Analysis Suite | -6/Zion | Archive Mak. Cloaking Device | -6/Zion | Archive Field Propulsion Drive | -6/Zion | Archive Lrn. Phase Cannon | -6/Zion | Archive Lrn. Sensor Array | -5/Factory | Hacked Mni. Smartbomb Launcher | -5/Factory | Hacked Exp. Utility Shielding | -5/Factory | Hacked Mic. Antimatter Reactor | -5/Factory | Hacked Q-thruster | -5/Factory | Hacked Adv. Reaction Control System | -4/Factory | Scanalyzed Adv. Power Amplifier | -4/Factory | Scanalyzed Adv. Cloaking Device | -4/Factory | Hacked Assault Drone Bay | -4/Zhirov | Free Exp. Heat Sink | -4/Zhirov | Free Exp. Optical Array | -4/Zhirov | Free Imp. Arc Thrower | -4/Zhirov | Free Quantum Shading Machine | -3/Research | Hacked Cld. Impulse Thruster | -3/Testing | Scanalyzed Med. Regenerative Plating | -3/Testing | Hacked Molecular Scythe | -3/Testing | Archive Imp. Energy Mantle | -3/Testing | Archive Imp. Diametric Drive | -3/Testing | Archive Hdn. Centrium Wheel | -3/Testing | Archive Imp. Matter Neutralizer | -3/Testing | Archive Cld. Nuclear Pulse Thruster | -3/Testing | Archive Com. Particle Reactor | -3/Testing | Archive Diametric Drive | -3/Testing | Archive Nanosword | -3/Testing | Archive Gravity Flail | -3/Testing | Archive Exp. Matter Compressor | -3/Testing | Archive Adv. Myomer Leg | -3/Testing | Archive Robot Schematics ------------------ M-28 Smith | -7/Data Miner | Free G-50 Soldier | -7/Data Miner | Free H-55 Commando | -7/Data Miner | Free P-70 Sage | -7/Data Miner | Free L-41 Fighter | -7/Data Miner | Free R-10 Processor | -6/Zion | Archive E-15 Imp | -6/Zion | Archive K-01 Serf | -6/Zion | Archive S-43 Plague | -3/Testing | Archive H-77 Assassin | -3/Testing | Archive A-02 Transporter | -3/Testing | Archive M-36 Artificer | -3/Testing | Archive Fabricated ------------ ECM Suite | x1 | -7/Factory Adv. System Shield | x1 | -6/Factory Adv. Hacking Suite | x1 | -6/Factory Adv. Hacking Suite | x1 | -6/Factory Adv. Hacking Suite | x1 | -6/Factory Mni. Smartbomb Launcher | x1 | -5/Factory Exp. Utility Shielding | x1 | -5/Factory Mic. Antimatter Reactor | x2 | -5/Factory Exp. Utility Shielding | x1 | -4/Factory Mni. Smartbomb Launcher | x1 | -4/Factory Adv. Cloaking Device | x1 | -4/Factory Med. Storage Unit | x1 | -3/Testing Alien Tech Used ----------------- Dimensional Node Initializer Integrated Reactor Achievements -------------- Production Line Rockin' Loadout Challenges ------------ None Game ------ Seed MakeshiftBiocellOptics Manual? 0 Play Time 06:02:42 Cumulative 108.7 hours Start 2024.05.12 @ 12:56:23 End 2024.05.13 @ 19:59:05 Sessions 13 Manual Loads 0 Difficulty Rogue Special Mode None Game No. 67 Rogue 67 Adventurer 0 Explorer 0 Win Type - Total 1 Types 1/0/0/0/0/0/0/0/0 Lore% 58 Gallery% 49 Achievement% 46 Wizard Run 0 Options --------- Layout 0 ASCII 0 Keyboard 0 Movement Mouse Keybinds 0 Fullscreen 1 Font 18/SmallcapsGlow Map View 76x50 Zoom Use 0% Tactical HUD 1 Map Filters NONE Filters NONE Steam 1 RUN: d49122ed-6f72-47fb-a9c6-0569a8c33ded